bitfinex/quotes_ETHUSD_20250403
["timestamp","ask_amount","ask_price","bid_price","bid_amount"]
[1743700228295,5.59525337,1775.2,1775.1,6.79400846]
[1743700228498,5.59525337,1775.2,1775.1,0.40222846]
[1743700228816,8.59525337,1775.2,1775.1,0.22611677]
[1743700229016,14.22841337,1775.2,1775.1,0.05]
[1743700229919,8.59525337,1775.2,1775.1,0.05]
[1743700230217,10.66331671,1775.2,1775.1,0.05]
[1743700230401,8.59525337,1775.2,1775.1,0.05]
[1743700230596,14.22841337,1775.2,1775.1,0.05]
[1743700231935,14.22841337,1775.2,1775.1,0.25963986]
[1743700232119,8.59525337,1775.2,1775.1,0.25963986]
[1743700232616,5.59525337,1775.2,1775.1,5.89311986]
[1743700233334,5.59525337,1775.2,1775.1,7.30202126]
[1743700233499,5.59525337,1775.2,1775.1,7.47814282]
[1743700236302,5.59525337,1775.2,1775.1,6.24536283]
[1743700238900,5.59525337,1775.2,1775.1,0.61188283]
[1743700239131,11.22841337,1775.2,1775.1,0.61188283]
[1743700239464,5.59525337,1775.2,1775.1,0.61188283]
[1743700239599,11.22841337,1775.2,1775.1,0.61188283]
[1743700239804,12.91454971,1775.2,1775.1,0.43576127]
[1743700240709,13.71244971,1775.2,1775.1,0.25963986]
[1743700241943,16.71244971,1775.2,1775.1,0.25963986]
[1743700245346,8.59525337,1775.2,1775.1,0.25963986]
[1743700245562,8.59525337,1775.2,1775.1,5.89311986]
[1743700245719,5.59525337,1775.2,1775.1,5.89311986]
[1743700246124,5.59525337,1775.2,1775.1,0.25963986]
[1743700246431,5.59525337,1775.2,1775.1,0.43576106]
[1743700247132,15.99031871,1775.2,1775.1,0.43576106]
[1743700247455,37.59808671,1775.2,1775.1,0.2261212]
[1743700247633,37.59808671,1775.2,1775.1,0.05]
[1743700247833,37.59808671,1775.2,1775.1,0.24112369]
[1743700248228,41.27808671,1775.2,1775.1,0.24112369]
[1743700248867,45.21108671,1775.2,1775.1,0.24112369]
[1743700249072,45.21108671,1775.2,1775.1,0.05]
[1743700249421,13.9292384,1775.1,1775.0,0.04]
[1743700249664,38.96277022,1775.1,1775.0,0.04]
[1743700249830,39.02105736,1775.1,1775.0,0.04]
[1743700250030,24.56183636,1775.1,1775.0,0.04]
[1743700250426,66.52761136,1775.1,1775.0,0.04]
[1743700251055,51.11321136,1775.1,1775.0,0.04]
[1743700251638,47.73021136,1775.1,1775.0,0.04]
[1743700251830,42.83594236,1775.1,1775.0,0.04]
[1743700252035,40.08282236,1775.1,1775.0,0.04]
[1743700252237,33.28774436,1775.1,1775.0,0.04]
[1743700252661,32.50640136,1775.1,1775.0,0.04]
[1743700252866,29.60274636,1775.1,1775.0,0.04]
[1743700253361,28.72404636,1775.1,1775.0,0.04]
[1743700253567,25.99698707,1775.1,1775.0,0.04]
[1743700253734,25.08830407,1775.1,1775.0,0.04]
[1743700253929,25.50501301,1775.1,1775.0,0.20168754]
[1743700254136,25.50501301,1775.1,1775.0,0.04]
[1743700254353,29.8925653,1775.1,1775.0,0.04]
[1743700259277,33.8255653,1775.1,1775.0,0.04]
[1743700259679,29.8925653,1775.1,1775.0,0.04]
[1743700260277,33.3325653,1775.1,1775.0,0.04]
[1743700260575,37.2655653,1775.1,1775.0,0.04]
[1743700260954,5.63475,1774.7,1774.6,0.1761581]
[1743700261160,41.31202053,1774.7,1774.6,0.3248093]
[1743700261352,40.67725405,1774.7,1774.6,0.3248093]
[1743700261585,38.78181705,1774.7,1774.6,0.3248093]
[1743700261982,38.78181705,1774.7,1774.6,0.1486512]
[1743700262180,42.72811705,1774.7,1774.6,0.1486512]
[1743700262345,0.7938,1774.4,1774.2,0.35233012]
[1743700262554,42.58776969,1774.3,1774.2,0.35233012]
[1743700262763,43.44369921,1774.3,1774.2,0.35233012]
[1743700262974,39.05614692,1774.3,1774.2,0.35233012]
[1743700263281,39.05614692,1774.3,1774.2,0.17617202]
[1743700263647,13.34054,1774.2,1774.1,0.05]
[1743700263983,60.29883384,1774.2,1774.1,0.05]
[1743700264162,56.91583384,1774.2,1774.1,0.05]
[1743700264362,60.31583384,1774.2,1774.1,0.05]
[1743700265273,60.5977185,1774.2,1774.1,0.05]
[1743700265683,60.31583384,1774.2,1774.1,0.05]
[1743700265882,45.6676672,1774.2,1774.1,0.05]
[1743700266383,45.94134384,1774.2,1774.1,0.05]
[1743700266975,45.39134384,1774.2,1774.1,0.05]
[1743700267284,42.66141284,1774.2,1774.1,0.05]
[1743700268247,43.21141284,1774.2,1774.1,0.05]
[1743700269089,3.0,1773.9,1773.6,5.63814]
[1743700269255,5.2057584,1773.8,1773.7,7.16325855]
[1743700269456,5.29318792,1773.8,1773.7,7.16325855]
[1743700270993,5.29318792,1773.8,1773.7,7.17365855]
[1743700271494,5.29318792,1773.8,1773.7,7.23003269]
[1743700271664,0.08742952,1773.8,1773.7,7.23003269]
[1743700271992,0.08742952,1773.8,1773.7,7.17365855]
[1743700272195,0.08742952,1773.8,1773.7,7.23002554]
[1743700272402,0.08742952,1773.8,1773.7,7.40626266]
[1743700272564,9.52e-06,1773.8,1773.7,7.89989567]
[1743700272772,5.2057584,1774.1,1773.7,7.89989567]
[1743700272773,5.2057584,1774.1,1774.0,6.41077]
[1743700272971,5.2057584,1774.1,1774.0,7.75983659]
[1743700273369,5.2057584,1774.1,1774.0,6.55504459]
[1743700274001,9.59331069,1774.1,1774.0,0.14427459]
[1743700274173,15.22997069,1774.1,1774.0,0.14427459]
[1743700274375,5.2057584,1774.1,1773.9,5.63713]
[1743700274702,5.2057584,1774.1,1774.0,0.14312554]
[1743700274899,5.2057584,1774.1,1774.0,5.78009554]
[1743700275089,5.2057584,1774.1,1774.0,7.21948956]
[1743700275289,5.2057584,1774.1,1774.0,12.85312109]
[1743700275889,5.2057584,1774.1,1774.0,13.02931162]
[1743700276094,5.2057584,1774.1,1774.0,13.20550297]
[1743700276706,5.2057584,1774.6,1774.5,6.45969]
[1743700276905,5.2057584,1774.6,1774.5,6.60109241]
[1743700277073,5.2057584,1774.8,1774.7,6.45905]
[1743700277598,5.2057584,1774.8,1774.7,6.59898497]
[1743700277995,5.2057584,1774.8,1774.7,6.77517632]
[1743700278299,5.2057584,1774.8,1774.7,8.57967995]
[1743700278499,5.2057584,1774.8,1774.7,8.75587048]
[1743700282209,5.2057584,1774.8,1774.7,8.81221037]
[1743700282396,5.2057584,1774.8,1774.7,8.75587048]
[1743700283608,5.2057584,1775.2,1774.7,3.12112048]
[1743700283907,5.2057584,1775.2,1775.1,5.63348]
[1743700284108,5.2057584,1775.2,1775.1,5.7634629]
[1743700284711,5.2057584,1775.7,1775.5,5.63208]
[1743700284916,5.2057584,1775.7,1775.5,6.44318]
[1743700285232,5.2057584,1775.7,1775.6,0.1299829]
[1743700286035,10.8373384,1775.7,1775.6,0.1299829]
[1743700286349,10.8373384,1775.7,1775.4,5.63235]
[1743700286498,5.2057584,1775.7,1775.5,0.12838912]
[1743700286698,10.8376084,1775.7,1775.5,0.12838912]
[1743700286942,6.28951924,1775.7,1775.4,5.63244]
[1743700287114,5.2057584,1775.7,1775.5,5.76056912]
[1743700287315,5.2057584,1775.7,1775.5,0.12838912]
[1743700288742,5.2057584,1775.7,1775.5,5.76058912]
[1743700289039,5.2057584,1775.7,1775.6,5.63189]
[1743700289243,5.2057584,1775.7,1775.6,6.39609]
[1743700289416,5.2057584,1775.7,1775.6,7.73950964]
[1743700289816,5.2057584,1775.7,1775.6,13.48082199]
[1743700290138,5.2057584,1775.7,1775.6,13.42450964]
[1743700290544,5.2057584,1775.7,1775.6,17.81206193]
[1743700290910,5.2057584,1775.7,1775.6,13.42450964]
[1743700292052,5.2057584,1775.7,1775.6,13.42350964]
[1743700292630,5.2057584,1775.7,1775.6,0.12775173]
[1743700293153,14.25523055,1775.7,1775.6,0.12775173]
[1743700293353,5.63206,1775.6,1775.2,6.46572]
[1743700293561,11.6508184,1775.6,1775.3,0.12246153]
[1743700293709,11.6508184,1775.6,1775.3,5.75530153]
[1743700293908,6.0187584,1775.6,1775.3,5.75530153]
[1743700294105,6.0187584,1775.6,1775.4,5.63245]
[1743700294345,5.2057584,1775.6,1775.4,5.63245]
[1743700294650,5.2057584,1775.6,1775.5,0.12246153]
[1743700295015,5.2057584,1775.6,1775.5,5.63221]
[1743700295222,5.2057584,1775.6,1775.5,5.75467153]
[1743700295452,5.2057584,1775.6,1775.5,6.56157153]
[1743700295757,5.2057584,1775.6,1775.5,7.78096568]
[1743700299267,5.2057584,1775.6,1775.5,7.8372805]
[1743700299826,5.2057584,1775.6,1775.5,7.78096568]
[1743700300027,5.2057584,1775.6,1775.5,7.83728051]
[1743700300569,5.2057584,1775.6,1775.5,7.78096568]
[1743700301345,5.2057584,1775.6,1775.5,6.56157153]
[1743700301744,5.2057584,1775.6,1775.5,5.75467153]
[1743700302438,5.2057584,1775.6,1775.5,5.81098876]
[1743700302768,0.05,1775.9,1775.5,5.81098876]
[1743700302769,0.05,1775.9,1775.8,6.38846]
[1743700302936,1e-05,1775.9,1775.8,14.00057301]
[1743700303275,6.01,1776.6,1776.4,5.62925]
[1743700303446,11.63842,1776.7,1776.4,5.62925]
[1743700303770,3.0,1776.6,1776.3,12.01632]
[1743700303974,3.0,1776.6,1776.4,5.74840527]
[1743700304270,8.62882,1776.6,1776.4,0.11908527]
[1743700304485,10.092702,1776.6,1776.4,0.11908527]
[1743700304831,15.721722,1776.6,1776.2,11.31188]
[1743700305069,15.721722,1776.6,1776.5,0.11908527]
[1743700305784,5.62935,1776.5,1776.1,5.63021]
[1743700305939,5.62935,1776.5,1776.2,5.74904527]
[1743700306366,15.27128429,1776.6,1776.2,5.74904527]
[1743700306569,20.90029429,1776.6,1776.2,5.74904527]
[1743700306845,5.62915,1776.5,1776.2,0.11908527]
[1743700307042,7.71919343,1776.5,1776.2,0.11908527]
[1743700307391,6.01,1776.4,1776.2,0.11908527]
[1743700307691,6.38567,1776.3,1776.2,0.11908527]
[1743700307895,9.38567,1776.3,1776.2,0.29508507]
[1743700308879,9.38567,1776.3,1776.2,0.11908527]
[1743700309182,11.488186,1776.3,1776.2,0.11908527]
[1743700309878,17.118136,1776.3,1775.9,5.98294401]
[1743700310082,6.01,1776.2,1775.9,5.98294401]
[1743700310382,11.64,1776.2,1775.9,5.98282401]
[1743700310982,5.63047,1776.1,1775.9,0.35200401]
[1743700311146,6.56329244,1776.1,1775.9,0.35200401]
[1743700311346,5.63063,1776.0,1775.9,0.35200401]
[1743700312383,5.63126,1775.8,1775.7,0.35200401]
[1743700312542,11.64126,1775.8,1775.7,0.35200401]
[1743700312748,6.01,1775.8,1775.7,0.35200401]
[1743700313374,6.01,1775.8,1775.7,0.17600421]
[1743700314976,6.01,1775.8,1775.7,5.98358401]
[1743700315165,6.01,1775.8,1775.7,7.41025941]
[1743700315565,6.01,1775.8,1775.7,7.46656889]
[1743700315754,6.01,1775.8,1775.7,13.09025941]
[1743700315955,6.01,1776.2,1776.0,5.63042]
[1743700316155,6.01,1776.2,1776.1,0.12099611]
[1743700316369,6.01,1776.2,1776.0,5.6306]
[1743700316570,6.01,1776.2,1776.1,0.12099611]
[1743700317182,6.01,1776.2,1776.1,0.29699591]
[1743700318390,11.63999,1776.2,1776.1,0.29699591]
[1743700318555,9.31865872,1776.2,1776.1,0.29699591]
[1743700318883,14.94864872,1776.2,1776.1,0.29699591]
[1743700319088,9.31865872,1776.2,1776.1,0.29699591]
[1743700319382,6.01,1776.2,1776.1,0.29699591]
[1743700319585,6.01,1776.3,1776.1,5.92730591]
[1743700319768,6.01,1776.3,1776.2,5.62999]
[1743700319960,6.01,1776.3,1776.2,5.74964832]
[1743700320171,6.01,1776.3,1776.2,0.11965832]
[1743700320372,12.8327839,1776.3,1776.2,0.11965832]
[1743700320572,18.02043619,1776.3,1776.2,0.11965832]
[1743700320885,29.73093219,1776.3,1776.2,0.11965832]
[1743700321092,18.02043619,1776.3,1776.2,0.11965832]
[1743700321618,23.65041619,1776.3,1776.0,0.35203639]
[1743700321893,8.63031,1776.1,1776.0,0.35203639]
[1743700322191,13.01786229,1776.1,1776.0,0.17603659]
[1743700322398,13.04701419,1776.1,1776.0,0.17603659]
[1743700322964,18.67756419,1776.1,1775.8,0.17603659]
[1743700323164,7.41670419,1776.1,1775.8,0.35208918]
[1743700323363,6.43754,1775.9,1775.8,0.35208918]
[1743700323775,6.4666919,1775.9,1775.8,0.35208918]
[1743700324158,6.4666919,1775.9,1775.8,0.17603659]
[1743700324685,11.23330419,1775.9,1775.6,0.35208918]
[1743700324875,6.01,1775.8,1775.6,0.35208918]
[1743700325271,0.0291519,1775.7,1775.6,5.80779659]
[1743700325671,0.0291519,1775.7,1775.6,6.95178325]
[1743700325874,0.0291519,1775.7,1775.6,7.71918325]
[1743700326196,0.0291519,1775.7,1775.6,7.77550016]
[1743700326388,0.0291519,1775.7,1775.6,7.95155517]
[1743700326916,0.0291519,1775.7,1775.6,7.89523826]
[1743700330071,0.0291519,1775.7,1775.6,7.95154781]
[1743700331104,6.01,1776.2,1776.1,6.40831]
[1743700331263,6.01,1776.4,1776.3,5.62967]
[1743700331605,6.01,1776.4,1776.3,5.7495831]
[1743700331969,6.01,1776.7,1776.4,0.8271]
[1743700332203,11.63854,1776.7,1776.5,0.11883036]
[1743700332388,6.01,1776.7,1776.5,0.11883036]
[1743700332604,6.01,1776.7,1776.4,5.80523501]
[1743700332771,6.01,1776.7,1776.5,5.74777036]
[1743700332971,6.01,1776.7,1776.5,5.74771036]
[1743700333171,11.63842,1776.7,1776.5,0.11883036]
[1743700333377,12.06264774,1776.7,1776.5,0.11883036]
[1743700334100,11.63842,1776.7,1776.5,0.11883036]
[1743700334667,17.26706,1776.7,1776.5,0.11883036]
[1743700335075,11.63842,1776.7,1776.5,0.11883036]
[1743700335567,17.26702,1776.7,1776.5,0.11883036]
[1743700335771,17.26712,1776.7,1776.5,0.11883036]
[1743700335968,18.05268429,1776.7,1776.5,0.11883036]
[1743700336169,5.62904,1776.5,1776.4,0.17603659]
[1743700336368,6.42082,1776.6,1776.4,0.29486695]
[1743700336596,6.00701603,1776.5,1776.4,0.29486695]
[1743700336798,6.00701603,1776.5,1776.4,0.11883036]
[1743700337683,18.50809063,1776.5,1776.2,0.35204521]
[1743700337884,5.62937,1776.4,1776.2,0.35204521]
[1743700338289,6.81801603,1776.3,1776.2,0.17603659]
[1743700338619,6.81801603,1776.3,1776.1,0.17603659]
[1743700338788,5.62999,1776.2,1776.1,0.17603659]
[1743700339517,16.83537832,1776.3,1776.1,0.17603659]
[1743700339677,6.81801603,1776.3,1776.1,5.80632659]
[1743700340002,6.00701603,1776.3,1776.1,0.17603659]
[1743700340412,6.00701603,1776.3,1776.1,0.17605053]
[1743700340776,6.00701603,1776.3,1776.1,5.80636053]
[1743700341004,11.63684603,1776.3,1776.1,0.17605053]
[1743700341209,17.26670603,1776.3,1776.1,0.17605053]
[1743700341411,6.00701603,1776.3,1776.1,0.17605053]
[1743700341576,6.00701603,1776.3,1776.1,0.59825571]
[1743700341776,6.00701603,1776.3,1776.1,5.63023]
[1743700341976,6.00701603,1776.3,1776.1,5.63022]
[1743700342194,6.00701603,1776.3,1776.1,5.63021]
[1743700342482,6.00701603,1776.3,1776.1,5.63017]
[1743700343308,6.00701603,1776.3,1776.1,5.80620659]
[1743700344109,6.00701603,1776.3,1776.1,0.17603659]
[1743700344308,0.8206,1776.2,1776.1,0.17603659]
[1743700344628,6.00701603,1776.3,1776.1,0.17603659]
[1743700344936,11.63669603,1776.3,1776.1,0.17603659]
[1743700345207,11.63669603,1776.3,1776.0,11.43713025]
[1743700345380,6.00701603,1776.3,1776.0,11.43713025]
[1743700345578,6.00701603,1776.3,1776.0,6.96782693]
[1743700345778,11.63672603,1776.3,1776.1,0.17603025]
[1743700346301,6.00701603,1776.3,1776.2,0.11494517]
[1743700346505,6.00701603,1776.3,1776.2,5.74493517]
[1743700346904,6.00701603,1776.3,1776.2,5.92096542]
[1743700347105,6.00701603,1776.3,1776.2,7.15257896]
[1743700347704,6.00701603,1776.3,1776.2,7.32861555]
[1743700348038,9.00701603,1776.3,1776.2,0.46701201]
[1743700348208,6.00701603,1776.3,1776.2,0.46701201]
[1743700349150,11.63668603,1776.3,1776.2,0.29097542]
[1743700349514,6.00701603,1776.3,1776.2,0.11494517]
[1743700350231,6.00701603,1776.3,1776.2,5.74493517]
[1743700350410,6.00701603,1776.3,1776.2,6.90004658]
[1743700350612,6.00701603,1776.3,1776.2,7.07607683]
[1743700351436,6.00701603,1776.3,1776.2,0.29097542]
[1743700351657,6.00701603,1776.3,1776.2,0.46699432]
[1743700352238,6.00701603,1776.3,1776.2,6.09698432]
[1743700353433,6.00701603,1776.3,1776.2,0.46699432]
[1743700354530,6.00701603,1776.3,1776.2,6.09698432]
[1743700354725,6.00701603,1776.3,1776.2,7.26969875]
[1743700355239,6.00701603,1776.3,1776.2,0.46699432]
[1743700355946,19.82223832,1776.3,1776.2,0.46699432]
[1743700356320,19.82223832,1776.3,1776.2,0.35204915]
[1743700356516,15.43468603,1776.3,1776.2,0.2921103]
[1743700357514,5.63144,1775.8,1775.4,5.63238]
[1743700357740,5.71490573,1775.7,1775.4,11.26478]
[1743700358039,11.34669573,1775.7,1775.3,12.04572]
[1743700358232,11.34669573,1775.7,1775.3,12.04567]
[1743700358435,11.34669573,1775.7,1775.4,5.63252]
[1743700358643,11.34669573,1775.7,1775.4,5.80860732]
[1743700358966,11.34669573,1775.7,1775.4,0.17608732]
[1743700359442,10.01976229,1775.5,1775.4,0.17608732]
[1743700359635,10.84866229,1775.5,1775.4,0.17608732]
[1743700360151,5.63287,1775.3,1775.1,0.17608732]
[1743700360357,5.71490573,1775.2,1775.1,0.17608732]
[1743700360512,5.71490573,1775.2,1775.1,0.12608732]
[1743700360837,5.71490573,1775.2,1774.9,6.38525]
[1743700361052,5.71490573,1775.2,1774.9,17.62634982]
[1743700361222,11.34824573,1775.2,1775.0,0.10718137]
[1743700361617,12.11804573,1775.2,1775.0,0.10718137]
[1743700361852,12.11804573,1775.2,1774.8,46.18114]
[1743700362148,12.11804573,1775.2,1775.1,0.10718137]
[1743700362348,6.48470573,1775.2,1775.1,0.10718137]
[1743700362655,12.11786573,1775.2,1775.1,0.10718137]
[1743700362827,13.8929373,1775.2,1774.8,46.1814]
[1743700363027,5.63358,1775.1,1774.9,0.11304329]
[1743700363225,5.63358,1775.1,1774.8,46.1814]
[1743700363464,5.63358,1775.1,1774.9,0.11304329]
[1743700363825,5.63358,1775.1,1774.8,46.1814]
[1743700364036,5.63358,1775.1,1774.9,0.11304329]
[1743700364237,5.63388,1775.0,1774.8,40.547]
[1743700364451,6.47960573,1774.9,1774.6,5.63492]
[1743700364622,6.47960573,1774.9,1774.5,0.7853]
[1743700364957,6.47960573,1774.9,1774.5,6.42064]
[1743700365158,5.63491,1774.7,1774.3,6.44071]
[1743700365454,6.54220573,1774.6,1774.3,5.63601]
[1743700365622,5.71490573,1774.6,1774.4,5.63558]
[1743700366027,5.71490573,1774.6,1774.5,5.63539]
[1743700366357,5.71490573,1774.6,1774.5,6.45979]
[1743700369961,5.71490573,1774.6,1774.4,5.63558]
[1743700370125,5.71490573,1774.6,1774.3,5.63588]
[1743700370333,5.71490573,1774.6,1774.4,5.63558]
[1743700371273,5.71490573,1774.6,1774.5,5.63539]
[1743700371767,5.71490573,1774.6,1774.4,5.63567]
[1743700371970,5.71490573,1774.6,1774.4,6.45307]
[1743700372141,5.71490573,1774.6,1774.5,5.63539]
[1743700374340,5.71490573,1774.6,1774.5,7.407793]
[1743700376050,5.71490573,1774.6,1774.5,7.46414021]
[1743700376260,5.71490573,1774.6,1774.5,7.53039819]
[1743700376441,5.71490573,1774.6,1774.5,8.30339819]
[1743700377471,5.71490573,1774.6,1774.5,6.53099519]
[1743700377644,5.71490573,1774.6,1774.5,5.75799519]
[1743700378475,5.71490573,1774.6,1774.5,6.54309519]
[1743700381038,5.71490573,1774.6,1774.5,6.71923798]
[1743700381654,5.71490573,1774.6,1774.5,5.93413798]
[1743700382475,5.74405001,1774.6,1774.5,5.75799519]
[1743700382842,5.74405001,1774.6,1774.5,0.12260519]
[1743700383044,6.31845501,1774.6,1774.5,0.12260519]
[1743700383244,5.74405001,1774.6,1774.5,5.75799519]
[1743700384657,5.74405001,1774.6,1774.5,5.93414601]
[1743700384883,5.74405001,1774.6,1774.5,6.11030463]
[1743700385662,5.74405001,1774.6,1774.5,0.47491463]
[1743700386180,5.74405001,1774.6,1774.5,0.29875601]
[1743700387163,5.74405001,1774.6,1774.5,5.93414601]
[1743700387454,5.74405001,1774.6,1774.5,5.75799519]
[1743700387953,5.74405001,1774.6,1774.5,5.93415381]
[1743700388166,5.74405001,1774.6,1774.5,0.29876381]
[1743700388567,5.74405001,1774.6,1774.5,5.93415381]
[1743700389281,5.74405001,1774.6,1774.5,6.11030463]
[1743700389788,5.74405001,1774.6,1774.5,7.36275109]
[1743700390086,0.02914428,1774.6,1774.5,7.41909911]
[1743700390284,5.71490573,1775.2,1774.5,11.20239911]
[1743700390586,5.71490573,1775.2,1775.1,5.63348]
[1743700390786,5.71490573,1775.2,1775.1,12.438194]
[1743700390986,5.71490573,1775.2,1775.1,13.33415055]
[1743700391153,5.71490573,1775.2,1775.1,13.51030917]
[1743700391785,5.71490573,1775.2,1775.1,13.68645999]
[1743700394160,5.71490573,1775.5,1775.4,6.42243]
[1743700394483,5.71490573,1775.5,1775.4,7.79016586]
[1743700394688,5.71490573,1775.5,1775.4,7.73384818]
[1743700394892,5.71490573,1775.5,1775.4,7.9100068]
[1743700395290,5.71490573,1775.5,1775.4,12.36096119]
[1743700395465,0.80200573,1776.2,1775.9,5.63067]
[1743700395668,5.73e-06,1776.2,1776.0,5.6304]
[1743700395869,5.73e-06,1776.2,1776.1,5.63031]
[1743700399305,5.73e-06,1776.2,1776.1,5.6866054]
[1743700399500,5.73e-06,1776.7,1776.5,5.62904]
[1743700399813,5.73e-06,1776.7,1776.6,5.62872]
[1743700400391,5.73e-06,1776.7,1776.5,5.62882]
[1743700400822,3.00000573,1776.7,1776.4,11.30333]
[1743700400978,5.62873,1776.6,1776.3,5.62967]
[1743700401168,5.62873,1776.6,1776.2,5.62983]
[1743700401374,0.808,1776.5,1776.2,11.3159235]
[1743700401575,0.808,1776.5,1776.2,5.6298]
[1743700402173,6.43708,1776.5,1776.1,16.93442]
[1743700402374,5.73e-06,1776.4,1776.1,11.30413]
[1743700402675,5.62939573,1776.4,1776.1,11.30413]
[1743700402898,5.73e-06,1776.4,1776.1,11.30413]
[1743700403802,5.62938573,1776.4,1776.1,5.674]
[1743700404010,0.808,1776.3,1776.0,11.26108]
[1743700404303,0.808,1776.3,1776.1,5.6301]
[1743700404699,0.808,1776.3,1776.1,5.6302]
[1743700405005,5.73e-06,1776.4,1776.3,5.62967]
[1743700406708,5.73e-06,1776.6,1776.5,5.62904]
[1743700408611,5.73e-06,1776.6,1776.5,5.68531861]
[1743700409907,5.73e-06,1776.6,1776.5,5.68531863]
[1743700410396,0.8,1776.9,1776.8,5.62809]
[1743700410397,0.05,1776.9,1776.8,5.62809]
[1743700410581,0.05,1776.9,1776.8,6.80999962]
[1743700411313,0.05,1776.9,1776.8,6.80999965]
[1743700411472,0.05,1776.9,1776.8,6.80999215]
[1743700412225,0.05,1776.9,1776.8,6.80999214]
[1743700412912,0.05,1776.9,1776.8,6.753727]
[1743700414495,0.05,1776.9,1776.8,11.29709]
[1743700414894,0.05,1776.9,1776.7,5.62828]
[1743700415211,0.05,1776.9,1776.7,5.62837]
[1743700415391,0.05,1776.9,1776.7,5.62835]
[1743700415599,0.05000573,1776.9,1776.6,5.6286]
[1743700415999,0.05000573,1776.9,1776.6,11.25717]
[1743700416206,0.05000573,1776.9,1776.7,5.62836]
[1743700416421,0.05000573,1776.9,1776.7,5.62826]
[1743700416735,0.05000573,1776.9,1776.6,5.62857]
[1743700417226,0.05000573,1776.9,1776.6,11.25719]
[1743700417527,0.05000573,1776.9,1776.7,5.62839]
[1743700417728,0.05000573,1776.9,1776.7,5.62831]
[1743700417894,0.05000573,1776.9,1776.6,5.62854]
[1743700418295,0.05000573,1776.9,1776.7,5.62837]
[1743700418598,0.05000573,1776.9,1776.8,5.62809]
[1743700421741,0.05000573,1776.9,1776.8,5.80402094]
[1743700422140,0.05000573,1776.9,1776.8,5.86029281]
[1743700423115,0.05000573,1776.9,1776.8,6.03622124]
[1743700423712,0.05000573,1776.9,1776.8,5.97994937]
[1743700425713,0.81280573,1776.9,1776.8,5.97994937]
[1743700425938,0.81280573,1776.9,1776.8,0.35185937]
[1743700426209,0.81280573,1776.9,1776.8,5.97994937]
[1743700426828,0.05000573,1776.9,1776.8,5.97994937]
[1743700427033,0.05000573,1776.9,1776.8,7.14077131]
[1743700429840,0.05000573,1776.9,1776.8,7.19704328]
[1743700430039,0.05000573,1776.9,1776.8,7.14077131]
[1743700430609,0.05000573,1776.9,1776.8,13.65084328]
[1743700430814,0.05000573,1776.9,1776.8,13.59457131]
[1743700431453,0.05,1776.9,1776.8,13.59457131]
[1743700432415,0.05,1776.9,1776.8,14.14457131]
[1743700434245,0.05,1776.9,1776.8,7.92757131]
[1743700434548,0.05,1776.9,1776.8,13.59357131]
[1743700435951,0.05,1776.9,1776.8,17.97533257]
[1743700436958,0.05,1776.9,1776.8,13.59357131]
[1743700440998,0.05,1776.9,1776.8,12.80577131]
[1743700441279,0.05,1776.9,1776.8,7.14077131]
[1743700442448,0.05,1776.9,1776.8,5.97994937]
[1743700444068,0.8093,1776.9,1776.8,0.35185937]
[1743700446152,0.8093,1776.9,1776.8,0.17593094]
[1743700447184,6.43707573,1776.9,1776.8,0.17593094]
[1743700447682,9.43707573,1776.9,1776.8,0.17593094]
[1743700447856,0.8038,1776.1,1775.7,5.6313]
[1743700448059,0.8038,1776.1,1775.5,46.15909]
[1743700448060,0.8038,1776.1,1775.8,5.63112]
[1743700448275,6.43411,1776.1,1775.7,11.26306]
[1743700448559,7.38176126,1775.9,1775.5,5.63216]
[1743700448753,7.18495613,1775.8,1775.4,11.26487]
[1743700449155,7.18495613,1775.8,1775.4,5.63237]
[1743700449458,12.46729,1775.7,1775.4,5.63237]
[1743700449670,22.91034806,1775.7,1775.3,5.63282]
[1743700450578,17.27854806,1775.7,1775.3,11.26548]
[1743700450874,19.08022048,1775.7,1775.3,11.26539]
[1743700451081,6.8357,1775.7,1775.5,5.63207]
[1743700452302,6.8357,1775.7,1775.4,5.63225]
[1743700452492,12.46735,1775.7,1775.4,5.63225]
[1743700452659,6.8357,1775.7,1775.4,5.63225]
[1743700453473,6.8357,1775.7,1775.4,11.26459]
[1743700453676,6.8357,1775.7,1775.4,11.26466]
[1743700453997,13.78798461,1775.7,1775.3,11.26562]
[1743700454165,18.16974587,1775.7,1775.3,5.63281]
[1743700454367,18.16974587,1775.7,1775.3,11.26551]
[1743700454569,18.16974587,1775.7,1775.3,5.6327]
[1743700454798,1.81697459,1775.6,1775.3,5.6327]
[1743700456586,7.44888459,1775.6,1775.3,5.6327]
[1743700457282,0.7917,1775.5,1775.2,11.29713]
[1743700457486,0.7917,1775.5,1775.3,5.63274]
[1743700458365,6.42396,1775.5,1775.2,5.633]
[1743700458598,6.274946,1775.4,1775.1,5.63343]
[1743700458804,6.274956,1775.4,1775.1,5.63343]
[1743700459194,0.8097,1775.3,1775.1,5.63343]
[1743700459398,6.8197,1775.3,1775.1,5.63343]
[1743700460090,6.8197,1775.3,1775.0,5.63377]
[1743700460295,0.68197,1775.2,1775.0,5.63377]
[1743700460825,6.8197,1775.3,1775.0,5.63377]
[1743700461024,6.8197,1775.3,1775.0,11.26742]
[1743700461317,12.45268,1775.3,1775.0,5.63365]
[1743700461517,6.8197,1775.3,1775.0,0.05633314]
[1743700461687,6.01,1775.3,1775.0,0.7547]
[1743700462317,6.01,1775.3,1775.2,5.63316]
[1743700465521,6.01,1775.4,1775.2,11.26632]
[1743700465688,6.01,1775.4,1775.2,11.26618]
[1743700465887,6.01,1775.4,1775.2,5.63302]
[1743700466088,6.01,1775.4,1775.3,5.63285]
[1743700466405,6.01,1775.4,1775.2,5.63302]
[1743700466612,6.01,1775.4,1775.3,5.63285]
[1743700467123,6.01,1775.4,1775.2,5.63302]
[1743700467427,6.01,1775.4,1775.2,11.26606]
[1743700467732,6.01,1775.4,1775.2,5.63302]
[1743700467895,6.01,1775.4,1775.2,11.26607]
[1743700468524,6.01,1775.4,1775.2,5.63302]
[1743700468729,6.01,1775.4,1775.2,11.26605]
[1743700469801,0.8158,1775.3,1775.1,5.63338]
[1743700470117,0.8158,1775.3,1775.0,5.63376]
[1743700470313,0.8158,1775.3,1775.0,5.63365]
[1743700470518,0.8158,1775.3,1775.1,5.63343]
[1743700470701,0.8158,1775.3,1775.0,11.26734]
[1743700470910,0.8158,1775.3,1775.1,5.63339]
[1743700471311,6.01,1775.2,1775.1,11.26678]